fUSD/lending_fUSD_20260304
["ID","MTS","AMOUNT","RATE_DAILY","PERIOD"]
[407654828,1772619066613,-1048.99686419,0.0002,2]
[407654829,1772619066622,-2874.53727678,0.0002,2]
[407654830,1772619066632,-12975.88674554,0.0002,2]
[407654831,1772619066642,-152.0,0.0002,2]
[407654832,1772619066651,-5000.0,0.0002,2]
[407654833,1772619066661,-1000.0,0.0002,20]
[407654834,1772619066670,-1000.0,0.0002,20]
[407654835,1772619066680,-1000.0,0.0002,20]
[407654836,1772619066690,-1000.0,0.0002,20]
[407654837,1772619066700,-1000.0,0.0002,20]
[407654838,1772619066709,-1000.0,0.0002,20]
[407654839,1772619066719,-1000.0,0.0002,20]
[407654840,1772619066728,-1000.0,0.0002,20]
[407654841,1772619066739,-1000.0,0.0002,20]
[407654842,1772619066748,-1000.0,0.0002,20]
[407654843,1772619066760,-1000.0,0.0002,20]
[407654844,1772619066770,-1000.0,0.0002,20]
[407654845,1772619066779,-1000.0,0.0002,20]
[407654846,1772619066789,-1000.0,0.0002,20]
[407654847,1772619066800,-1000.0,0.0002,20]
[407654848,1772619066810,-1000.0,0.0002,20]
[407654849,1772619066820,-1000.0,0.0002,20]
[407654850,1772619066829,-1000.0,0.0002,20]
[407654851,1772619066839,-1000.0,0.0002,20]
[407654852,1772619066850,-1000.0,0.0002,20]
[407654853,1772619066861,-1000.0,0.0002,20]
[407654854,1772619066871,-1000.0,0.0002,20]
[407654855,1772619066881,-1000.0,0.0002,20]
[407654856,1772619066891,-1000.0,0.0002,20]
[407654857,1772619066901,-1000.0,0.0002,20]
[407654858,1772619066910,-1000.0,0.0002,20]
[407654859,1772619066920,-1000.0,0.0002,20]
[407654860,1772619066930,-1000.0,0.0002,20]
[407654861,1772619066939,-1000.0,0.0002,20]
[407654862,1772619066949,-1000.0,0.0002,20]
[407654863,1772619066958,-1000.0,0.0002,20]
[407654864,1772619066967,-1000.0,0.0002,20]
[407654865,1772619066977,-805.06,0.0002,20]
[407654866,1772619066987,-151.0,0.0002,2]
[407654867,1772619066997,-200.0,0.0002,2]
[407654868,1772619067007,-194.0,0.0002,2]
[407654869,1772619067016,-200.0,0.0002,2]
[407654870,1772619067026,-4719.81516792,0.0002,2]
[407654871,1772619067035,-5112.329999,0.0002,2]
[407654872,1772619067046,-150.08717937,0.0002,20]
[407654873,1772619067056,-8720.0,0.0002001,2]
[407654874,1772619067067,-426.58,0.0002003,2]
[407654875,1772619067077,-770.0,0.00020113,2]
[407654876,1772619067087,-150.0,0.00020113,2]
[407654877,1772619067097,-150.0,0.00020113,2]
[407654878,1772619067107,-170.0,0.00020113,2]
[407654879,1772619067117,-634.0,0.00020164,2]
[407654880,1772619067126,-150.0,0.00020274,2]
[407654881,1772619067135,-250.0,0.00020274,2]
[407654882,1772619067145,-350.0,0.00020274,2]
[407654883,1772619067154,-267.28948161,0.00020274,2]
[407654884,1772619067163,-177.22,0.00020274,2]
[407654885,1772619067173,-4733.696948,0.00020278,2]
[407654886,1772619067185,-2466.0835659,0.00020278,2]
[407654887,1772619067195,-426.58,0.000203,2]
[407654888,1772619067205,-150.0,0.00020364,2]
[407654889,1772619067215,-150.0,0.00020364,2]
[407654890,1772619067224,-150.0,0.00020364,2]
[407654891,1772619067234,-150.0,0.00020364,2]
[407654892,1772619067243,-619.0,0.00020364,2]
[407654893,1772619067253,-3501.0,0.00020364,2]
[407654894,1772619067262,-1341.0,0.00020364,2]
[407654895,1772619067272,-1041.0,0.00020364,2]
[407654896,1772619067285,-1278.0,0.00020364,2]
[407654897,1772619067296,-767.0,0.0002037,2]
[407654898,1772619067305,-150.0,0.0002037,2]
[407654899,1772619067315,-150.0,0.0002037,2]
[407654900,1772619067326,-166.0,0.0002037,2]
[407654901,1772619067335,-156.48,0.00020548,2]
[407654902,1772619067345,-177.22,0.00020548,2]
[407654903,1772619067355,-426.58,0.0002057,2]
[407654904,1772619067364,-506.0,0.000206,7]
[407654905,1772619067374,-153.19702547,0.00020654,2]
[407654906,1772619067384,-22758.42542586,0.000207,2]
[407654907,1772619067394,-1000.0,0.00020735,2]
[407654908,1772619067404,-1056.2305581,0.00020787,2]
[407654909,1772619067415,-550.257621,0.00020787,2]
[407654910,1772619067424,-270.03135916,0.00020822,2]
[407654911,1772619067434,-350.0,0.00020822,2]
[407654912,1772619067444,-450.0,0.00020822,2]
[407654913,1772619067454,-426.58,0.0002084,2]
[407654914,1772619067463,-1600.0,0.00020947,2]
[407654915,1772619067473,-20000.0,0.00021,2]
[407654916,1772619067483,-1198.62469847,0.00021,2]
[407654917,1772619067492,-197.84297654,0.00021,2]
[407654918,1772619067502,-5000.0,0.00021,2]
[407654919,1772619067512,-400.0,0.00021,2]
[407654920,1772619067522,-150.0,0.00021,2]
[407654921,1772619067532,-3363.80646898,0.00021034,2]
[407654922,1772619067542,-426.58,0.0002111,2]
[407654923,1772619067552,-191.0,0.00021296,7]
[407654924,1772619067561,-1000.0,0.00021357,2]
[407654925,1772619067573,-450.0,0.0002137,2]
[407654926,1772619067583,-550.0,0.0002137,2]
[407654927,1772619067593,-426.58,0.0002138,2]
[407654928,1772619067603,-151.0,0.00021497,2]
[407654929,1772619067613,-57819.36448989,0.000215,2]
[407654930,1772619067623,-223.20288875,0.000215,2]
[407654931,1772619067633,-165993.3,0.000215,2]
[407654932,1772619067642,-250.0,0.00021548,2]
[407654933,1772619067652,-1000.0,0.00021631,2]
[407654934,1772619067661,-426.58,0.0002165,2]
[407654935,1772619067671,-272.0,0.00021873,3]
[407654936,1772619067680,-1000.0,0.00021905,2]
[407654937,1772619067689,-3048.27,0.00021918,2]
[407654938,1772619067699,-5000.0,0.00021918,2]
[407654939,1772619067709,-151.0,0.00021918,2]
[407654940,1772619067719,-151.0,0.00021918,2]
[407654941,1772619067728,-151.0,0.00021918,2]
[407654942,1772619067737,-151.0,0.00021918,2]
[407654943,1772619067746,-151.0,0.00021918,2]
[407654944,1772619067755,-151.0,0.00021918,2]
[407654945,1772619067764,-151.0,0.00021918,2]
[407654946,1772619067773,-151.0,0.00021918,2]
[407654947,1772619067783,-151.0,0.00021918,2]
[407654948,1772619067791,-151.0,0.00021918,2]
[407654949,1772619067801,-151.0,0.00021918,2]
[407654950,1772619067809,-151.0,0.00021918,2]
[407654951,1772619067819,-151.0,0.00021918,2]
[407654952,1772619067829,-151.0,0.00021918,2]
[407654953,1772619067838,-151.0,0.00021918,2]
[407654954,1772619067847,-151.0,0.00021918,2]
[407654955,1772619067856,-233.203389,0.00021918,2]
[407654956,1772619067865,-151.0,0.00021918,2]
[407654957,1772619067874,-151.0,0.00021918,2]
[407654958,1772619067883,-276.491508,0.00021918,2]
[407654959,1772619067892,-161.29529703,0.00021918,2]
[407654960,1772619067901,-650.0,0.00021918,2]
[407654961,1772619067910,-550.0,0.00021918,2]
[407654962,1772619067919,-150.0,0.00021918,2]
[407654963,1772619067928,-426.58,0.0002192,2]
[407654964,1772619067937,-433.32,0.00021969,2]
[407654965,1772619067946,-471.66,0.00021969,2]
[407654966,1772619067955,-205.12,0.00021978,2]
[407654967,1772619067964,-164.92,0.00022,2]
[407654968,1772619067973,-160.0,0.00022,2]
[407654969,1772619067983,-5000.0,0.00022,2]
[407654970,1772619067993,-350.0,0.00022096,2]
[407654971,1772619068003,-496.9432266,0.000221,2]
[407654972,1772619068013,-241.47230172,0.0002211,2]
[407654973,1772619068022,-1000.0,0.00022179,2]
[407654974,1772619068032,-426.58,0.0002219,2]
[407654975,1772619068041,-153.19702547,0.00022243,2]
[407654976,1772619068051,-1000.0,0.00022453,2]
[407654977,1772619068060,-426.58,0.0002246,2]
[407654978,1772619068070,-650.0,0.00022466,2]
[407654979,1772619068081,-750.0,0.00022466,2]
[407654980,1772619068091,-35680.89124737,0.000225,2]
[407654981,1772619068101,-1212.0,0.00022556,2]
[407654982,1772619068111,-921.0,0.00022556,2]
[407654983,1772619068123,-2458.0,0.00022556,2]
[407654984,1772619068133,-5987.0,0.00022556,2]
[407654985,1772619068143,-3623.64065429,0.000226,2]
[407654986,1772619068152,-450.0,0.00022644,2]
[407654987,1772619068162,-715.30690695,0.00022699,2]
[407654988,1772619068171,-525.93254595,0.0002271,2]
[407654989,1772619068181,-1000.0,0.00022727,2]
[407654990,1772619068191,-426.58,0.0002273,2]
[407654991,1772619068201,-1000.0,0.00022808,2]
[407654992,1772619068211,-167.0,0.00022818,14]
[407654993,1772619068221,-2000.0,0.000229,2]
[407654994,1772619068230,-2000.11,0.00022915,2]
[407654995,1772619068240,-221936.15835709,0.00023,2]
[407654996,1772619068250,-5000.0,0.00023,2]
[407654997,1772619068260,-216.86763205,0.00023,2]
[407654998,1772619068270,-426.75,0.00023,2]
[407654999,1772619068282,-160.0,0.00023,2]
[407655000,1772619068295,-450.0,0.00023,2]
[407655001,1772619068306,-83376.21744508,0.00023,2]
[407655002,1772619068316,-750.0,0.00023014,2]
[407655003,1772619068330,-850.0,0.00023014,2]
[407655004,1772619068339,-433.32,0.00023068,2]
[407655005,1772619068351,-471.67735946,0.00023068,2]
[407655006,1772619068361,-550.0,0.00023192,2]
[407655007,1772619068371,-771.23812641,0.000232,2]
[407655008,1772619068381,-1500.0,0.00023288,2]
[407655009,1772619068391,-150.0,0.00023364,2]
[407655010,1772619068400,-150.0,0.00023364,2]
[407655011,1772619068411,-619.0,0.00023364,2]
[407655012,1772619068421,-3501.0,0.00023364,2]
[407655013,1772619068431,-1341.0,0.00023364,2]
[407655014,1772619068441,-1041.0,0.00023364,2]
[407655015,1772619068452,-1278.0,0.00023364,2]
[407655016,1772619068463,-200.0,0.000235,2]
[407655017,1772619068473,-565.88141402,0.00023562,2]
[407655018,1772619068482,-950.0,0.00023562,2]
[407655019,1772619068492,-650.0,0.0002374,2]
[407655020,1772619068503,-272.0,0.0002381,3]
[407655021,1772619068649,-153.1970255,0.00023832,2]
[407655022,1772619068659,-1026.95224988,0.00024,2]
[407655023,1772619068668,-3600.0,0.00024,2]
[407655024,1772619068678,-1241.80646239,0.00024,2]
[407655025,1772619068687,-5000.0,0.00024,2]
[407655026,1772619068697,-10031.46175919,0.00024,2]
[407655027,1772619068706,-165993.3,0.00024,7]
[407655028,1772619068715,-172.65896273,0.00024,7]
[407655029,1772619068724,-1050.0,0.0002411,2]
[407655030,1772619068734,-1767.17,0.00024174,2]
[407655031,1772619068743,-424.25096589,0.0002421,2]
[407655032,1772619068753,-3717.09875316,0.0002421,2]
[407655033,1772619068761,-750.0,0.00024288,2]
[407655034,1772619068770,-168.81296492,0.0002465,2]
[407655035,1772619068779,-2008.2951225,0.00024657,2]
[407655036,1772619068788,-1009.06355604,0.00024658,2]
[407655037,1772619068797,-1000.0,0.00024658,2]
[407655038,1772619068806,-1539.24,0.00024658,2]
[407655039,1772619068816,-156.451462,0.00024658,2]
[407655040,1772619068826,-156.451462,0.00024658,2]
[407655041,1772619068835,-156.451462,0.00024658,2]
[407655042,1772619068845,-156.451462,0.00024658,2]
[407655043,1772619068854,-156.451462,0.00024658,2]
[407655044,1772619068863,-156.451462,0.00024658,2]
[407655045,1772619068872,-156.451462,0.00024658,2]
[407655046,1772619068881,-156.451462,0.00024658,2]
[407655047,1772619068890,-156.451462,0.00024658,2]
[407655048,1772619068900,-156.451462,0.00024658,2]
[407655049,1772619068909,-156.451462,0.00024658,2]
[407655050,1772619068919,-156.451462,0.00024658,2]
[407655051,1772619068928,-156.451462,0.00024658,2]
[407655052,1772619068937,-156.451462,0.00024658,2]
[407655053,1772619068946,-156.451462,0.00024658,2]
[407655054,1772619068956,-156.451462,0.00024658,2]
[407655055,1772619068965,-156.451462,0.00024658,2]
[407655056,1772619068975,-156.451462,0.00024658,2]
[407655057,1772619068985,-156.451462,0.00024658,2]
[407655058,1772619068994,-156.451471,0.00024658,2]
[407655059,1772619069003,-150.0,0.00024658,2]
[407655060,1772619069014,-151.0,0.00024658,2]
[407655061,1772619069023,-151.0,0.00024658,2]
[407655062,1772619069032,-151.0,0.00024658,2]
[407655063,1772619069041,-151.0,0.00024658,2]
[407655064,1772619069050,-152.082186,0.00024658,2]
[407655065,1772619069059,-181.67,0.00024658,30]
[407655066,1772619069069,-188.879884,0.00024658,2]
[407655067,1772619069082,-188.879884,0.00024658,2]
[407655068,1772619069091,-188.879884,0.00024658,2]
[407655069,1772619069100,-188.879884,0.00024658,2]
[407655070,1772619069109,-188.879884,0.00024658,2]
[407655071,1772619069119,-188.879884,0.00024658,2]
[407655072,1772619069129,-188.879884,0.00024658,2]
[407655073,1772619069142,-188.879884,0.00024658,2]
[407655074,1772619069151,-188.879884,0.00024658,2]
[407655075,1772619069161,-188.879884,0.00024658,2]
[407655076,1772619069171,-188.879884,0.00024658,2]
[407655077,1772619069185,-188.879884,0.00024658,2]
[407655078,1772619069194,-188.879884,0.00024658,2]
[407655079,1772619069204,-188.879884,0.00024658,2]
[407655080,1772619069214,-188.879884,0.00024658,2]
[407655081,1772619069224,-188.879884,0.00024658,2]
[407655082,1772619069233,-188.879884,0.00024658,2]
[407655083,1772619069243,-188.879884,0.00024658,2]
[407655084,1772619069252,-188.879884,0.00024658,2]
[407655085,1772619069261,-188.87988,0.00024658,2]
[407655086,1772619069271,-172.65896273,0.000247,7]
[407655087,1772619069281,-200.94114036,0.00024836,2]
[407655088,1772619069295,-1000.0,0.00024881,2]
[407655089,1772619069304,-1117.52382771,0.00025,2]
[407655090,1772619069313,-208.18301428,0.00025,2]
[407655091,1772619069324,-1790.64051402,0.00025,2]
[407655092,1772619069335,-540.0,0.00025,2]
[407655093,1772619069344,-612.89116184,0.00025,2]
[407655094,1772619069353,-3054.3826312,0.00025,2]
[407655095,1772619069363,-7150.95265778,0.00025,2]
[407655096,1772619069372,-167.86685117,0.00025,2]
[407655097,1772619069381,-1798.38637562,0.00025,2]
[407655098,1772619069390,-5000.0,0.00025,2]
[407655099,1772619069398,-151.0,0.00025,2]
[407655100,1772619069407,-500.0,0.00025,2]
[407655101,1772619069416,-151.0,0.00025387,7]
[407655102,1772619069425,-49708.54572515,0.0002539,2]
[407655103,1772619069434,-1212.0,0.00025556,2]
[407655104,1772619069443,-921.0,0.00025556,2]
[407655105,1772619069451,-2458.0,0.00025556,2]
[407655106,1772619069460,-5987.0,0.00025556,2]
[407655107,1772619069469,-272.0,0.00025746,3]
[407655108,1772619069478,-151.0,0.000258,5]
[407655109,1772619069487,-500.0,0.00025869,2]
[407655110,1772619069495,-150.0,0.0002589,2]
[407655111,1772619069504,-602.95404374,0.0002599,2]
[407655112,1772619069513,-4538.64678521,0.00026,2]
[407655113,1772619069522,-217.22634548,0.00026,2]
[407655114,1772619069530,-5000.0,0.00026,2]
[407655115,1772619069539,-416.05894053,0.000263,2]
[407655116,1772619069548,-619.0,0.00026364,2]
[407655117,1772619069557,-3501.0,0.00026364,2]
[407655118,1772619069567,-1341.0,0.00026364,2]
[407655119,1772619069577,-1278.0,0.00026364,2]
[407655120,1772619069586,-27573.3616387,0.000264,2]
[407655121,1772619069595,-2000.0,0.000266,2]
[407655122,1772619069604,-250.0,0.00027,2]
[407655123,1772619069613,-1038.28847311,0.00027,2]
[407655124,1772619069622,-530.0,0.00027,2]
[407655125,1772619069631,-5000.0,0.00027,2]
[407655126,1772619069640,-1116.852207,0.00027,2]
[407655127,1772619069649,-550.0,0.00027,2]
[407655128,1772619069658,-3703.22,0.00027123,2]
[407655129,1772619069666,-150.0,0.00027185,2]
[407655130,1772619069675,-506.0,0.000272,13]
[407655131,1772619069683,-1000.0,0.00027239,2]
[407655132,1772619069692,-150.0,0.00027369,2]
[407655133,1772619069700,-4126.56160763,0.0002739,2]
[407655134,1772619069709,-8153.1185151,0.0002739,2]
[407655135,1772619069718,-329.98180814,0.00027397,2]
[407655136,1772619069727,-500.0,0.00027397,2]
[407655137,1772619069735,-230.98726569,0.00027397,2]
[407655138,1772619069744,-1000.0,0.00027397,20]
[407655139,1772619069752,-1539.24,0.00027397,2]
[407655140,1772619069761,-1000.83,0.00027397,2]
[407655141,1772619069770,-1452.16,0.00027397,2]
[407655142,1772619069779,-300.0,0.00027397,2]
[407655143,1772619069788,-521.49,0.00027397,2]
[407655144,1772619069797,-1259.113712,0.00027397,2]
[407655145,1772619069806,-1259.113712,0.00027397,2]
[407655146,1772619069815,-1259.113712,0.00027397,2]
[407655147,1772619069824,-1259.113712,0.00027397,2]
[407655148,1772619069832,-1259.113712,0.00027397,2]
[407655149,1772619069841,-1259.113712,0.00027397,2]
[407655150,1772619069849,-1259.113712,0.00027397,2]
[407655151,1772619069857,-1259.113712,0.00027397,2]
[407655152,1772619069866,-1259.113712,0.00027397,2]
[407655153,1772619069875,-1259.113712,0.00027397,2]
[407655154,1772619069884,-1259.113712,0.00027397,2]
[407655155,1772619069893,-1259.113712,0.00027397,2]
[407655156,1772619069902,-1259.113712,0.00027397,2]
[407655157,1772619069911,-1259.113712,0.00027397,2]
[407655158,1772619069920,-1259.113712,0.00027397,2]
[407655159,1772619069929,-1259.113712,0.00027397,2]
[407655160,1772619069939,-1259.113712,0.00027397,2]
[407655161,1772619069949,-1259.113712,0.00027397,2]
[407655162,1772619069958,-1259.113712,0.00027397,2]
[407655163,1772619069966,-1259.113705,0.00027397,2]
[407655164,1772619069974,-154.681742,0.00027397,2]
[407655165,1772619069983,-509.75229,0.00027397,2]
[407655166,1772619069991,-509.75229,0.00027397,2]
[407655167,1772619069998,-509.75229,0.00027397,2]
[407655168,1772619070006,-509.75229,0.00027397,2]
[407655169,1772619070015,-509.75229,0.00027397,2]
[407655170,1772619070024,-509.75229,0.00027397,2]
[407655171,1772619070033,-509.75229,0.00027397,2]
[407655172,1772619070043,-509.75229,0.00027397,2]
[407655173,1772619070053,-509.75229,0.00027397,2]
[407655174,1772619070061,-509.75229,0.00027397,2]
[407655175,1772619070071,-509.75229,0.00027397,2]
[407655176,1772619070081,-509.75229,0.00027397,2]
[407655177,1772619070090,-509.75229,0.00027397,2]
[407655178,1772619070100,-509.75229,0.00027397,2]
[407655179,1772619070110,-509.75229,0.00027397,2]
[407655180,1772619070119,-509.75229,0.00027397,2]
[407655181,1772619070136,-509.75229,0.00027397,2]
[407655182,1772619070148,-509.75229,0.00027397,2]
[407655183,1772619070159,-509.75229,0.00027397,2]
[407655184,1772619070169,-509.75229,0.00027397,2]
[407655185,1772619070179,-202.04666301,0.000275,2]
[407655186,1772619070191,-551.94844948,0.000275,2]
[407655187,1772619070202,-165993.3,0.000275,7]
[407655188,1772619070213,-272.0,0.00027683,3]
[407655189,1772619070222,-51072.01817022,0.00028,2]
[407655190,1772619070231,-160.0,0.00028,2]
[407655191,1772619070241,-5000.0,0.00028,2]
[407655192,1772619070250,-151.0,0.00028,2]
[407655193,1772619070262,-150.0,0.00028544,2]
[407655194,1772619070272,-1212.0,0.00028556,2]
[407655195,1772619070286,-921.0,0.00028556,2]
[407655196,1772619070295,-2458.0,0.00028556,2]
[407655197,1772619070304,-3162.305,0.00028556,2]
[407655198,1772619070313,-1500.0,0.00028609,5]
[407655199,1772619070325,-152.0,0.0002873,3]
[407655200,1772619070334,-504.49433107,0.00029,2]
[407655201,1772619070343,-5000.0,0.00029,2]
[407655202,1772619070354,-600.0,0.00029,2]
[407655203,1772619070363,-619.0,0.00029364,2]
[407655204,1772619070372,-3501.0,0.00029364,2]
[407655205,1772619070382,-1341.0,0.00029364,2]
[407655206,1772619070392,-1278.0,0.00029364,2]
[407655207,1772619070402,-7132.80742085,0.000295,120]
[407655208,1772619070411,-272.0,0.00029619,3]
[407655209,1772619070422,-201.42874694,0.00029698,2]
[407655210,1772619070432,-79274.19951685,0.000299,2]
[407655211,1772619070442,-150.0,0.00029971,2]
[407655212,1772619070452,-2000.0,0.00029979,5]
[407655213,1772619070462,-238.41037643,0.0002999,2]
[407655214,1772619070473,-245.19944954,0.0003,7]
[407655215,1772619070483,-245.19944954,0.0003,7]
[407655216,1772619070492,-18541.1442729,0.0003,2]
[407655217,1772619070501,-19967.31341867,0.0003,2]
[407655218,1772619070510,-320.90297613,0.0003,2]
[407655219,1772619070520,-1826.80985219,0.0003,2]
[407655220,1772619070529,-163.852598,0.0003,2]
[407655221,1772619070538,-221.6263327,0.0003,2]
[407655222,1772619070547,-7522.88825601,0.0003,2]
[407655223,1772619070557,-151.0,0.0003,2]
[407655224,1772619070567,-500.27041,0.0003,2]
[407655225,1772619070577,-961.53158474,0.0003,2]
[407655226,1772619070586,-1032.69837033,0.0003,2]
[407655227,1772619070595,-1000.0,0.0003,120]
[407655228,1772619070606,-1079.15323222,0.0003013,2]
[407655229,1772619070615,-13922.31392375,0.0003013,2]
[407655230,1772619070624,-637.29767631,0.0003013,2]
[407655231,1772619070634,-202.740272,0.0003013,2]
[407655232,1772619070643,-7770.90569071,0.0003013,2]
[407655233,1772619070653,-512.23987672,0.0003013,2]
[407655234,1772619070663,-1539.24,0.00030137,2]
[407655235,1772619070673,-15615.26047123,0.000302,2]
[407655236,1772619070684,-2000.0,0.000303,2]
[407655237,1772619070698,-150.0,0.000304,14]
[407655238,1772619070708,-324.0,0.00030764,30]
[407655239,1772619070718,-1617.11140722,0.0003084,2]
[407655240,1772619070728,-51825.74611887,0.00031,2]
[407655241,1772619070738,-151.0,0.00031,2]
[407655242,1772619070749,-10000.0,0.00031096,2]
[407655243,1772619070758,-152.0,0.00031221,4]
[407655244,1772619070767,-2000.0,0.00031349,5]
[407655245,1772619070777,-180.24131651,0.00031391,7]
[407655246,1772619070787,-150.0,0.0003147,2]
[407655247,1772619070796,-198.35706493,0.000315,2]
[407655248,1772619070805,-150.0,0.000315,2]
[407655249,1772619070815,-272.0,0.00031556,3]
[407655250,1772619070826,-1212.0,0.00031556,2]
[407655251,1772619070836,-921.0,0.00031556,2]
[407655252,1772619070846,-2458.0,0.00031556,2]
[407655253,1772619070855,-81173.0,0.0003185,20]
[407655254,1772619070862,-215.69,0.000319,14]
[407655255,1772619070870,-879.28,0.00032,7]
[407655256,1772619070878,-151.0,0.00032,2]
[407655257,1772619070886,-1022.23,0.00032,120]
[407655258,1772619070895,-1000.0,0.00032,120]
[407655259,1772619070905,-496.9677203,0.00032255,14]
[407655260,1772619070914,-898.88131489,0.000323,2]
[407655261,1772619070923,-20063.95564771,0.000323,30]
[407655262,1772619070932,-570.18,0.00032364,2]
[407655263,1772619070942,-3501.0,0.00032364,2]
[407655264,1772619070952,-1341.0,0.00032364,2]
[407655265,1772619070961,-1196.679,0.00032364,2]
[407655266,1772619070971,-1022.23,0.00032376,120]
[407655267,1772619070980,-160.41138415,0.00032397,7]
[407655268,1772619070990,-165993.3,0.000324,7]
[407655269,1772619071000,-1022.23,0.00032753,120]
[407655270,1772619071009,-4856.31153941,0.000328,2]
[407655271,1772619071019,-581.64025774,0.00032876,2]
[407655272,1772619071028,-500.0,0.00032876,2]
[407655273,1772619071038,-458.66022132,0.00032876,2]
[407655274,1772619071047,-500.0,0.00032876,2]
[407655275,1772619071056,-500.0,0.00032876,2]
[407655276,1772619071065,-500.0,0.00032876,2]
[407655277,1772619071077,-500.0,0.00032876,2]
[407655278,1772619071090,-588.9351487,0.00032876,2]
[407655279,1772619071100,-393.99752246,0.00032876,2]
[407655280,1772619071110,-205.63695329,0.00032876,2]
[407655281,1772619071119,-500.0,0.00032876,2]
[407655282,1772619071129,-500.0,0.00032876,2]
[407655283,1772619071140,-500.0,0.00032876,2]
[407655284,1772619071150,-441.16771266,0.00032876,2]
[407655285,1772619071160,-500.0,0.00032876,2]
[407655286,1772619071175,-500.0,0.00032876,2]
[407655287,1772619071184,-500.0,0.00032876,2]
[407655288,1772619071194,-500.0,0.00032876,2]
[407655289,1772619071204,-292.90738099,0.00032876,2]
[407655290,1772619071213,-500.0,0.00032876,2]
[407655291,1772619071223,-500.0,0.00032876,2]
[407655292,1772619071233,-500.0,0.00032876,2]
[407655293,1772619071244,-500.0,0.00032876,2]
[407655294,1772619071255,-500.0,0.00032876,2]
[407655295,1772619071270,-500.0,0.00032876,2]
[407655296,1772619071282,-500.0,0.00032876,2]
[407655297,1772619071294,-500.0,0.00032876,2]
[407655298,1772619071304,-500.0,0.00032876,2]
[407655299,1772619071314,-500.0,0.00032876,2]
[407655300,1772619071323,-500.0,0.00032876,2]
[407655301,1772619071334,-500.0,0.00032876,2]
[407655302,1772619071541,-500.0,0.00032876,2]
[407655303,1772619071551,-218.86272031,0.00032876,2]
[407655304,1772619071561,-500.0,0.00032876,2]
[407655305,1772619071570,-500.0,0.00032876,2]
[407655306,1772619071583,-500.0,0.00032876,2]
[407655307,1772619071592,-500.0,0.00032876,2]
[407655308,1772619071601,-388.21229526,0.00032876,2]
[407655309,1772619071610,-351.12960956,0.00032876,2]
[407655310,1772619071620,-1440.67837536,0.00032876,2]
[407655311,1772619071630,-1440.67837536,0.00032876,2]
[407655312,1772619071639,-1440.67837536,0.00032876,2]
[407655313,1772619071648,-1440.67837536,0.00032876,2]
[407655314,1772619071657,-1440.67837536,0.00032876,2]
[407655315,1772619071666,-1440.67837536,0.00032876,2]
[407655316,1772619071675,-1440.67837536,0.00032876,2]
[407655317,1772619071685,-1440.67837536,0.00032876,2]
[407655318,1772619071694,-1440.67837536,0.00032876,2]
[407655319,1772619071703,-1440.67837536,0.00032876,2]
[407655320,1772619071712,-1440.67837536,0.00032876,2]
[407655321,1772619071721,-1440.67837536,0.00032876,2]
[407655322,1772619071730,-1440.67837536,0.00032876,2]
[407655323,1772619071739,-1440.67837536,0.00032876,2]
[407655324,1772619071749,-1440.67837536,0.00032876,2]
[407655325,1772619071758,-1440.67837536,0.00032876,2]
[407655326,1772619071767,-1440.67837536,0.00032876,2]
[407655327,1772619071776,-1440.67837536,0.00032876,2]